[Event "*** Titled Tuesday Blitz"]
[Site "Chess.com"]
[Date "2020.04.07"]
[Round "6"]
[White "vizumatv4hoda"]
[Black "steepedgames"]
[Result "1-0"]
[WhiteElo "2729"]
[BlackElo "2449"]
[TimeControl "180+1"]
[EndTime "14:04:31 PDT"]
[Termination "vizumatv4hoda won by resignation"]

1. e4 {[%clk 0:03:00.9]} 1... e6 {[%clk 0:02:59.2]} 2. d4 {[%clk 0:02:58.7]}
2... d5 {[%clk 0:02:59.9]} 3. exd5 {[%clk 0:02:59.2]} 3... exd5 {[%clk 0:03:00]}
4. c4 {[%clk 0:02:59.7]} 4... Nf6 {[%clk 0:02:56]} 5. Nc3 {[%clk 0:03:00.6]}
5... c6 {[%clk 0:02:55.9]} 6. Nf3 {[%clk 0:03:01.5]} 6... Be7 {[%clk 0:02:55]}
7. cxd5 {[%clk 0:02:59.2]} 7... Nxd5 {[%clk 0:02:54.4]} 8. Bd3 {[%clk
0:03:00.1]} 8... Bf6 {[%clk 0:02:51.4]} 9. O-O {[%clk 0:02:58.1]} 9... O-O
{[%clk 0:02:50.9]} 10. h3 {[%clk 0:02:54]} 10... Nxc3 {[%clk 0:02:43.1]} 11.
bxc3 {[%clk 0:02:52.5]} 11... c5 {[%clk 0:02:43.6]} 12. Ba3 {[%clk 0:02:46.9]}
12... Nd7 {[%clk 0:02:37.2]} 13. dxc5 {[%clk 0:02:36.1]} 13... Re8 {[%clk
0:02:24.6]} 14. Re1 {[%clk 0:02:28]} 14... Rxe1+ {[%clk 0:02:07.7]} 15. Qxe1
{[%clk 0:02:28.9]} 15... Nf8 {[%clk 0:02:06.7]} 16. Rd1 {[%clk 0:02:20.9]} 16...
Qc7 {[%clk 0:01:56.7]} 17. Qe8 {[%clk 0:02:19.5]} 17... Qe7 {[%clk 0:01:49.4]}
18. Re1 {[%clk 0:02:09.7]} 18... Be6 {[%clk 0:00:38.4]} 19. Qxa8 {[%clk
0:02:05.1]} 1-0

[Event "*** Titled Tuesday Blitz"]
[Site "Chess.com"]
[Date "2020.04.07"]
[Round "6"]
[White "davigator"]
[Black "Neimar24"]
[Result "0-1"]
[WhiteElo "2333"]
[BlackElo "2528"]
[TimeControl "180+1"]
[EndTime "14:04:51 PDT"]
[Termination "Neimar24 won by resignation"]

1. e4 {[%clk 0:03:00.9]} 1... e6 {[%clk 0:02:58.2]} 2. d4 {[%clk 0:03:00.1]}
2... d5 {[%clk 0:02:58.6]} 3. Nc3 {[%clk 0:03:00.5]} 3... Nf6 {[%clk 0:02:58.5]}
4. e5 {[%clk 0:03:00.7]} 4... Nfd7 {[%clk 0:02:58.2]} 5. f4 {[%clk 0:03:01]}
5... c5 {[%clk 0:02:58.6]} 6. Nf3 {[%clk 0:03:01.1]} 6... Nc6 {[%clk 0:02:59]}
7. Be3 {[%clk 0:03:01]} 7... Be7 {[%clk 0:02:59.3]} 8. Qd2 {[%clk 0:03:00.6]}
8... O-O {[%clk 0:02:58.7]} 9. dxc5 {[%clk 0:03:01]} 9... Qa5 {[%clk 0:02:56.7]}
10. Bd3 {[%clk 0:02:47.2]} 10... Nxc5 {[%clk 0:02:55.7]} 11. O-O {[%clk
0:02:45.6]} 11... Rd8 {[%clk 0:02:53.7]} 12. Qf2 {[%clk 0:02:43.8]} 12... Nxd3
{[%clk 0:02:51.3]} 13. cxd3 {[%clk 0:02:42.5]} 13... d4 {[%clk 0:02:47.6]} 14.
Nxd4 {[%clk 0:02:41.3]} 14... Nxd4 {[%clk 0:02:47.4]} 15. Ne4 {[%clk 0:02:25.1]}
15... Nf5 {[%clk 0:02:44.8]} 16. Nd6 {[%clk 0:02:19.3]} 16... Bxd6 {[%clk
0:02:36.7]} 17. exd6 {[%clk 0:02:18.5]} 17... Nxe3 {[%clk 0:02:36.5]} 18. Qxe3
{[%clk 0:02:18.5]} 18... Rxd6 {[%clk 0:02:34.8]} 19. Rf3 {[%clk 0:02:18.9]}
19... Qb6 {[%clk 0:02:34.6]} 20. Qf2 {[%clk 0:01:54.1]} 20... Qxf2+ {[%clk
0:02:30.7]} 21. Kxf2 {[%clk 0:01:55]} 21... Bd7 {[%clk 0:02:29.7]} 22. b3 {[%clk
0:01:54.1]} 22... Bc6 {[%clk 0:02:29.3]} 23. Re3 {[%clk 0:01:53.7]} 23... Rad8
{[%clk 0:02:29.8]} 24. Rd1 {[%clk 0:01:53]} 24... Bb5 {[%clk 0:02:28.5]} 25. Ke2
{[%clk 0:01:53]} 25... f6 {[%clk 0:02:27.8]} 26. g3 {[%clk 0:01:52.2]} 26... Kf7
{[%clk 0:02:27.7]} 27. Rd2 {[%clk 0:01:52]} 27... e5 {[%clk 0:02:27.5]} 28. fxe5
{[%clk 0:01:51.6]} 28... fxe5 {[%clk 0:02:27.4]} 29. Rxe5 {[%clk 0:01:51.8]}
29... Bxd3+ {[%clk 0:02:25.3]} 30. Ke3 {[%clk 0:01:51.8]} 30... Bg6 {[%clk
0:02:20.3]} 31. Rxd6 {[%clk 0:01:45.8]} 31... Rxd6 {[%clk 0:02:19.6]} 32. g4
{[%clk 0:01:44.3]} 32... Re6 {[%clk 0:02:19.3]} 33. Kf4 {[%clk 0:01:43]} 33...
Rxe5 {[%clk 0:02:16.7]} 34. Kxe5 {[%clk 0:01:43.9]} 34... Ke7 {[%clk 0:02:17.1]}
35. h4 {[%clk 0:01:42.9]} 35... a5 {[%clk 0:02:17]} 36. a3 {[%clk 0:01:41.8]}
36... Bc2 {[%clk 0:02:14.3]} 37. b4 {[%clk 0:01:41.3]} 37... axb4 {[%clk
0:02:14.1]} 38. axb4 {[%clk 0:01:40.8]} 38... b5 {[%clk 0:02:13.6]} 39. Kd5
{[%clk 0:01:39.9]} 39... Kf6 {[%clk 0:02:11.4]} 40. Kc5 {[%clk 0:01:38.5]} 40...
Bd3 {[%clk 0:02:10.9]} 41. Kd4 {[%clk 0:01:38.7]} 41... Be2 {[%clk 0:02:10.2]}
42. g5+ {[%clk 0:01:38.9]} 42... Kf5 {[%clk 0:02:10.1]} 43. Kd5 {[%clk
0:01:38.7]} 43... Kg4 {[%clk 0:02:09.5]} 44. Ke6 {[%clk 0:01:38.7]} 44... Kxh4
{[%clk 0:02:09.2]} 45. Kf7 {[%clk 0:01:38.1]} 45... Kxg5 {[%clk 0:02:08.5]} 0-1

[Event "*** Titled Tuesday Blitz"]
[Site "Chess.com"]
[Date "2020.04.07"]
[Round "6"]
[White "CalinGheorghiu"]
[Black "annamaja"]
[Result "0-1"]
[WhiteElo "2421"]
[BlackElo "2273"]
[TimeControl "180+1"]
[EndTime "14:04:58 PDT"]
[Termination "annamaja won by resignation"]

1. e4 {[%clk 0:03:00.9]} 1... c6 {[%clk 0:02:59.7]} 2. c4 {[%clk 0:02:56.5]}
2... d5 {[%clk 0:02:59.7]} 3. exd5 {[%clk 0:02:55.8]} 3... cxd5 {[%clk
0:02:59.6]} 4. cxd5 {[%clk 0:02:56.1]} 4... Nf6 {[%clk 0:03:00.2]} 5. Nc3 {[%clk
0:02:56.7]} 5... g6 {[%clk 0:02:49.7]} 6. Nf3 {[%clk 0:02:47.3]} 6... Bg7 {[%clk
0:02:49]} 7. Bb5+ {[%clk 0:02:44.6]} 7... Nbd7 {[%clk 0:02:48.4]} 8. d4 {[%clk
0:02:40.6]} 8... a6 {[%clk 0:02:36.9]} 9. Ba4 {[%clk 0:02:39.6]} 9... b5 {[%clk
0:02:26.4]} 10. Bb3 {[%clk 0:02:39.3]} 10... O-O {[%clk 0:02:26.5]} 11. d6
{[%clk 0:02:39]} 11... exd6 {[%clk 0:02:24.6]} 12. O-O {[%clk 0:02:38.6]} 12...
Bb7 {[%clk 0:02:09.5]} 13. Bg5 {[%clk 0:02:36.2]} 13... h6 {[%clk 0:02:07.7]}
14. Bh4 {[%clk 0:02:35.2]} 14... g5 {[%clk 0:01:57.9]} 15. Bg3 {[%clk
0:02:33.6]} 15... Nb6 {[%clk 0:01:57.2]} 16. Bc2 {[%clk 0:02:28.2]} 16... Rc8
{[%clk 0:01:31.5]} 17. Qd3 {[%clk 0:02:24.1]} 17... Nc4 {[%clk 0:01:25.3]} 18.
Bb3 {[%clk 0:02:11.2]} 18... Nxb2 {[%clk 0:01:16]} 19. Qd2 {[%clk 0:02:08.4]}
19... Nc4 {[%clk 0:01:09.5]} 20. Qd3 {[%clk 0:02:00]} 20... Qc7 {[%clk
0:00:58.4]} 21. Rac1 {[%clk 0:01:58.6]} 21... Qa5 {[%clk 0:00:51.7]} 22. Bxc4
{[%clk 0:01:53.6]} 22... bxc4 {[%clk 0:00:47.4]} 23. Qf5 {[%clk 0:01:52.7]}
23... Qxf5 {[%clk 0:00:45.3]} 0-1

[Event "*** Titled Tuesday Blitz"]
[Site "Chess.com"]
[Date "2020.04.07"]
[Round "6"]
[White "Coiote53"]
[Black "AustrianFalcon"]
[Result "1-0"]
[WhiteElo "2374"]
[BlackElo "2580"]
[TimeControl "180+1"]
[EndTime "14:05:03 PDT"]
[Termination "Coiote53 won by resignation"]

1. e4 {[%clk 0:03:00.9]} 1... g6 {[%clk 0:02:57.4]} 2. d4 {[%clk 0:02:58.7]}
2... Bg7 {[%clk 0:02:57.8]} 3. Nc3 {[%clk 0:02:59.6]} 3... d6 {[%clk 0:02:55.4]}
4. Be3 {[%clk 0:02:58.8]} 4... a6 {[%clk 0:02:52.9]} 5. Qd2 {[%clk 0:02:58.5]}
5... b5 {[%clk 0:02:51.7]} 6. O-O-O {[%clk 0:02:57.2]} 6... Bb7 {[%clk
0:02:48.1]} 7. f3 {[%clk 0:02:55.4]} 7... Nd7 {[%clk 0:02:47.9]} 8. h4 {[%clk
0:02:53.4]} 8... h5 {[%clk 0:02:47.7]} 9. Nh3 {[%clk 0:02:49.4]} 9... Ngf6
{[%clk 0:02:45.7]} 10. Ng5 {[%clk 0:02:48]} 10... e6 {[%clk 0:02:45.4]} 11. Kb1
{[%clk 0:02:43.2]} 11... Qe7 {[%clk 0:02:43.1]} 12. a4 {[%clk 0:02:29.7]} 12...
b4 {[%clk 0:02:37]} 13. Ne2 {[%clk 0:02:30.1]} 13... a5 {[%clk 0:02:37.3]} 14.
Nf4 {[%clk 0:02:29.9]} 14... O-O {[%clk 0:02:22.7]} 15. Ngxe6 {[%clk 0:02:11.3]}
15... fxe6 {[%clk 0:02:12.4]} 16. Nxg6 {[%clk 0:02:11.6]} 16... Qf7 {[%clk
0:02:03.5]} 17. Nxf8 {[%clk 0:02:12.5]} 17... Rxf8 {[%clk 0:02:03.5]} 18. Bh6
{[%clk 0:02:12.1]} 18... Nb6 {[%clk 0:01:59.2]} 19. Bxg7 {[%clk 0:02:11]} 19...
Qxg7 {[%clk 0:01:56.2]} 20. b3 {[%clk 0:02:11.5]} 20... c5 {[%clk 0:01:45.9]}
21. dxc5 {[%clk 0:02:10.4]} 21... dxc5 {[%clk 0:01:46.2]} 22. Qd6 {[%clk
0:02:10.4]} 22... Nbd7 {[%clk 0:01:28.5]} 23. Bc4 {[%clk 0:02:09.4]} 23... Kh8
{[%clk 0:01:25.1]} 24. Bxe6 {[%clk 0:02:07.6]} 24... Bxe4 {[%clk 0:01:21.8]} 25.
Bxd7 {[%clk 0:02:02]} 25... Rd8 {[%clk 0:01:11.7]} 26. Qe5 {[%clk 0:01:54.5]}
26... Nd5 {[%clk 0:01:03.2]} 27. Qxg7+ {[%clk 0:01:48.4]} 27... Kxg7 {[%clk
0:01:02.9]} 28. fxe4 {[%clk 0:01:48.6]} 28... Nc3+ {[%clk 0:01:03.1]} 29. Kb2
{[%clk 0:01:49]} 29... Nxd1+ {[%clk 0:01:02]} 30. Rxd1 {[%clk 0:01:49.9]} 30...
Kf6 {[%clk 0:01:02.5]} 31. Rd5 {[%clk 0:01:50]} 31... Rg8 {[%clk 0:01:01.9]} 32.
Bh3 {[%clk 0:01:50.3]} 32... Rxg2 {[%clk 0:01:02.3]} 1-0

[Event "*** Titled Tuesday Blitz"]
[Site "Chess.com"]
[Date "2020.04.07"]
[Round "6"]
[White "Winehouse83"]
[Black "coalescenet"]
[Result "0-1"]
[WhiteElo "2509"]
[BlackElo "2352"]
[TimeControl "180+1"]
[EndTime "14:05:07 PDT"]
[Termination "coalescenet won by resignation"]

1. d4 {[%clk 0:03:00.9]} 1... d5 {[%clk 0:02:59.1]} 2. c4 {[%clk 0:03:00.5]}
2... e6 {[%clk 0:02:59]} 3. Nc3 {[%clk 0:03:00.6]} 3... Be7 {[%clk 0:02:58.2]}
4. cxd5 {[%clk 0:02:54.7]} 4... exd5 {[%clk 0:02:58.2]} 5. Bf4 {[%clk
0:02:54.7]} 5... Nf6 {[%clk 0:02:57.5]} 6. e3 {[%clk 0:02:53.6]} 6... O-O {[%clk
0:02:54.7]} 7. Bd3 {[%clk 0:02:52.8]} 7... c6 {[%clk 0:02:53.8]} 8. h3 {[%clk
0:02:47.4]} 8... Bd6 {[%clk 0:02:49.2]} 9. Nge2 {[%clk 0:02:45.8]} 9... Bxf4
{[%clk 0:02:42.2]} 10. Nxf4 {[%clk 0:02:46.7]} 10... Nbd7 {[%clk 0:02:41.8]} 11.
Qc2 {[%clk 0:02:46.1]} 11... Re8 {[%clk 0:02:39.3]} 12. O-O-O {[%clk 0:02:43.6]}
12... Nf8 {[%clk 0:02:39]} 13. g4 {[%clk 0:02:43]} 13... Ne6 {[%clk 0:02:35.6]}
14. Nxe6 {[%clk 0:02:38.9]} 14... Rxe6 {[%clk 0:02:35.5]} 15. g5 {[%clk
0:02:39.1]} 15... Ne4 {[%clk 0:02:33]} 16. Nxe4 {[%clk 0:02:25.4]} 16... dxe4
{[%clk 0:02:33.3]} 17. Bxe4 {[%clk 0:02:25.9]} 17... Qxg5 {[%clk 0:02:30.3]} 18.
Bxh7+ {[%clk 0:02:25.4]} 18... Kh8 {[%clk 0:02:29.7]} 19. Rhg1 {[%clk
0:02:21.3]} 19... Qh4 {[%clk 0:02:24.5]} 20. Rg4 {[%clk 0:02:07.6]} 20... Qxh7
{[%clk 0:02:20.2]} 21. Qc5 {[%clk 0:02:04.3]} 21... Bd7 {[%clk 0:02:16.3]} 22.
Rdg1 {[%clk 0:02:02.6]} 22... g6 {[%clk 0:02:07.7]} 23. Qg5 {[%clk 0:02:00]}
23... Qg7 {[%clk 0:01:59.8]} 24. Rh4+ {[%clk 0:01:45.9]} 24... Kg8 {[%clk
0:01:59.6]} 25. Qf4 {[%clk 0:01:43.5]} 25... Rc8 {[%clk 0:01:54.1]} 26. Rh6
{[%clk 0:01:38.1]} 26... Rf6 {[%clk 0:01:51]} 27. Qh4 {[%clk 0:01:34.4]} 27...
Rxf2 {[%clk 0:01:43.2]} 28. Rhxg6 {[%clk 0:01:26.3]} 28... fxg6 {[%clk 0:01:35]}
29. Qxf2 {[%clk 0:01:26]} 29... Bf5 {[%clk 0:01:25.1]} 30. Qh4 {[%clk
0:01:22.5]} 30... Re8 {[%clk 0:01:23.7]} 31. Qe4 {[%clk 0:01:20.4]} 31... Rxe4
{[%clk 0:01:22.2]} 0-1

[Event "*** Titled Tuesday Blitz"]
[Site "Chess.com"]
[Date "2020.04.07"]
[Round "6"]
[White "lIlIlIlI_lIl"]
[Black "LogoCzar"]
[Result "1-0"]
[WhiteElo "2614"]
[BlackElo "2410"]
[TimeControl "180+1"]
[EndTime "14:05:10 PDT"]
[Termination "lIlIlIlI_lIl won by resignation"]

1. e4 {[%clk 0:03:00.9]} 1... e5 {[%clk 0:02:59.8]} 2. Nf3 {[%clk 0:03:00.6]}
2... Nc6 {[%clk 0:03:00.3]} 3. Bb5 {[%clk 0:03:00.9]} 3... Nf6 {[%clk
0:03:00.6]} 4. d3 {[%clk 0:03:00.3]} 4... Bc5 {[%clk 0:03:00.3]} 5. O-O {[%clk
0:02:57.1]} 5... Nd4 {[%clk 0:03:00.3]} 6. Nxd4 {[%clk 0:02:56.3]} 6... Bxd4
{[%clk 0:03:00.7]} 7. c3 {[%clk 0:02:56.7]} 7... Bb6 {[%clk 0:02:56]} 8. Ba4
{[%clk 0:02:56.1]} 8... c6 {[%clk 0:02:55.4]} 9. Na3 {[%clk 0:02:52.2]} 9... d6
{[%clk 0:02:51]} 10. Bb3 {[%clk 0:02:22.4]} 10... h6 {[%clk 0:02:50.3]} 11. Nc4
{[%clk 0:02:21]} 11... Bc7 {[%clk 0:02:50.4]} 12. f4 {[%clk 0:02:20.7]} 12...
Bg4 {[%clk 0:02:41]} 13. Qe1 {[%clk 0:02:19.9]} 13... exf4 {[%clk 0:02:36.2]}
14. Bxf4 {[%clk 0:02:18.8]} 14... O-O {[%clk 0:02:36.3]} 15. Qg3 {[%clk
0:02:15.5]} 15... Qd7 {[%clk 0:02:24.3]} 16. Ne3 {[%clk 0:01:57.2]} 16... Bb6
{[%clk 0:02:12.8]} 17. d4 {[%clk 0:01:40.4]} 17... Rfe8 {[%clk 0:02:03.3]} 18.
Bxh6 {[%clk 0:01:07.3]} 18... gxh6 {[%clk 0:01:58.3]} 19. Rxf6 {[%clk
0:01:05.1]} 19... Rxe4 {[%clk 0:01:42.7]} 20. Rxf7 {[%clk 0:01:02.6]} 20... Qxf7
{[%clk 0:01:37.6]} 21. Bxf7+ {[%clk 0:01:00.9]} 21... Kxf7 {[%clk 0:01:38.5]}
22. Nxg4 {[%clk 0:01:01.2]} 1-0

[Event "*** Titled Tuesday Blitz"]
[Site "Chess.com"]
[Date "2020.04.07"]
[Round "6"]
[White "hongnhung1234"]
[Black "RojonR"]
[Result "0-1"]
[WhiteElo "2171"]
[BlackElo "2401"]
[TimeControl "180+1"]
[EndTime "14:05:10 PDT"]
[Termination "RojonR won by resignation"]

1. e4 {[%clk 0:03:00.9]} 1... e5 {[%clk 0:02:55.7]} 2. Nf3 {[%clk 0:03:00]} 2...
Nc6 {[%clk 0:02:55.2]} 3. d4 {[%clk 0:02:59.2]} 3... exd4 {[%clk 0:02:54.8]} 4.
Nxd4 {[%clk 0:03:00.1]} 4... Qf6 {[%clk 0:02:54.6]} 5. Be3 {[%clk 0:02:58.8]}
5... Bc5 {[%clk 0:02:53.6]} 6. c3 {[%clk 0:02:59]} 6... Nge7 {[%clk 0:02:51.8]}
7. Bc4 {[%clk 0:02:58.4]} 7... d6 {[%clk 0:02:51.4]} 8. O-O {[%clk 0:02:57.7]}
8... O-O {[%clk 0:02:50.3]} 9. Kh1 {[%clk 0:02:57.7]} 9... Qg6 {[%clk 0:02:46]}
10. Nd2 {[%clk 0:02:56]} 10... Kh8 {[%clk 0:02:27.9]} 11. f4 {[%clk 0:02:54.3]}
11... f5 {[%clk 0:02:26.5]} 12. Nxc6 {[%clk 0:02:43.8]} 12... Nxc6 {[%clk
0:02:22.7]} 13. Bxc5 {[%clk 0:02:43.1]} 13... dxc5 {[%clk 0:02:23.6]} 14. e5
{[%clk 0:02:41.5]} 14... Be6 {[%clk 0:02:17.9]} 15. Qf3 {[%clk 0:02:32.6]} 15...
Rad8 {[%clk 0:02:14.8]} 16. Bxe6 {[%clk 0:02:31.1]} 16... Qxe6 {[%clk
0:02:11.8]} 17. Rfd1 {[%clk 0:02:29]} 17... c4 {[%clk 0:02:00.4]} 18. Qe2 {[%clk
0:02:22.5]} 18... b5 {[%clk 0:01:55.9]} 19. a4 {[%clk 0:02:16.2]} 19... a6
{[%clk 0:01:50.4]} 20. b3 {[%clk 0:02:13.7]} 20... cxb3 {[%clk 0:01:36.9]} 21.
axb5 {[%clk 0:02:12.2]} 21... b2 {[%clk 0:01:34]} 22. Rxa6 {[%clk 0:02:03.1]}
22... Qd5 {[%clk 0:01:17.2]} 23. Rxc6 {[%clk 0:01:46.1]} 23... Qxd2 {[%clk
0:01:12.9]} 24. Qxd2 {[%clk 0:01:42.6]} 24... Rxd2 {[%clk 0:01:11.9]} 25. Rb1
{[%clk 0:01:38.2]} 25... Rc2 {[%clk 0:01:10.6]} 0-1

[Event "*** Titled Tuesday Blitz"]
[Site "Chess.com"]
[Date "2020.04.07"]
[Round "6"]
[White "ferdipy"]
[Black "MaxLeto"]
[Result "1-0"]
[WhiteElo "2170"]
[BlackElo "2296"]
[TimeControl "180+1"]
[EndTime "14:05:11 PDT"]
[Termination "ferdipy won by resignation"]

1. e4 {[%clk 0:03:00.9]} 1... c5 {[%clk 0:02:56.4]} 2. d4 {[%clk 0:02:59.7]}
2... cxd4 {[%clk 0:02:55.9]} 3. c3 {[%clk 0:02:59.7]} 3... dxc3 {[%clk
0:02:55.3]} 4. Nxc3 {[%clk 0:03:00.4]} 4... Nc6 {[%clk 0:02:55.2]} 5. Bc4 {[%clk
0:03:01.3]} 5... e6 {[%clk 0:02:55.2]} 6. Nf3 {[%clk 0:03:01.6]} 6... a6 {[%clk
0:02:54.4]} 7. O-O {[%clk 0:02:57.6]} 7... Nge7 {[%clk 0:02:54.8]} 8. Bb3 {[%clk
0:02:44.1]} 8... Ng6 {[%clk 0:02:51.8]} 9. Be3 {[%clk 0:02:40.7]} 9... b5 {[%clk
0:02:42.8]} 10. Nd5 {[%clk 0:02:30.1]} 10... exd5 {[%clk 0:02:36.1]} 11. exd5
{[%clk 0:02:27.5]} 11... Bd6 {[%clk 0:01:01]} 12. dxc6 {[%clk 0:02:23.6]} 12...
dxc6 {[%clk 0:01:01.9]} 13. Ng5 {[%clk 0:02:18.4]} 13... O-O {[%clk 0:00:57]}
14. Qh5 {[%clk 0:02:18.4]} 14... h6 {[%clk 0:00:48]} 15. Nxf7 {[%clk 0:02:17.1]}
15... Rxf7 {[%clk 0:00:08.3]} 16. Qxg6 {[%clk 0:02:17.1]} 16... Qf6 {[%clk
0:00:01.8]} 17. Bxf7+ {[%clk 0:02:13]} 17... Qxf7 {[%clk 0:00:01.4]} 18. Qxd6
{[%clk 0:02:08.3]} 18... Be6 {[%clk 0:00:01.5]} 1-0

[Event "*** Titled Tuesday Blitz"]
[Site "Chess.com"]
[Date "2020.04.07"]
[Round "6"]
[White "MikeKorovin"]
[Black "Eltaj_Safarli"]
[Result "0-1"]
[WhiteElo "2765"]
[BlackElo "3056"]
[TimeControl "180+1"]
[EndTime "14:05:19 PDT"]
[Termination "Eltaj_Safarli won by resignation"]

1. Nf3 {[%clk 0:03:00.9]} 1... Nf6 {[%clk 0:02:57.4]} 2. b3 {[%clk 0:03:01]}
2... g6 {[%clk 0:02:58.3]} 3. Bb2 {[%clk 0:03:01.9]} 3... Bg7 {[%clk 0:02:58.1]}
4. g3 {[%clk 0:03:02.5]} 4... O-O {[%clk 0:02:58.6]} 5. Bg2 {[%clk 0:03:03.2]}
5... d5 {[%clk 0:02:58.9]} 6. O-O {[%clk 0:03:03.4]} 6... Nc6 {[%clk 0:02:58.6]}
7. d3 {[%clk 0:02:52.7]} 7... d4 {[%clk 0:02:57.2]} 8. Nbd2 {[%clk 0:02:50.5]}
8... Nd5 {[%clk 0:02:56.2]} 9. a4 {[%clk 0:02:48.2]} 9... e5 {[%clk 0:02:56]}
10. Nc4 {[%clk 0:02:46.4]} 10... Re8 {[%clk 0:02:55.9]} 11. e4 {[%clk 0:02:46]}
11... dxe3 {[%clk 0:02:52.7]} 12. Nxe3 {[%clk 0:02:46]} 12... Nxe3 {[%clk
0:02:48.7]} 13. fxe3 {[%clk 0:02:46.9]} 13... e4 {[%clk 0:02:49.3]} 14. Bxg7
{[%clk 0:01:27.8]} 14... exf3 {[%clk 0:02:48]} 15. Bh6 {[%clk 0:01:27.8]} 15...
fxg2 {[%clk 0:02:44.7]} 16. Kxg2 {[%clk 0:01:26.7]} 16... f6 {[%clk 0:02:42.5]}
17. Qf3 {[%clk 0:01:19.2]} 17... Ne5 {[%clk 0:02:42.3]} 18. Qe2 {[%clk
0:01:11.9]} 18... Bg4 {[%clk 0:02:35.4]} 19. Qe1 {[%clk 0:01:07.8]} 19... Qd6
{[%clk 0:02:31.3]} 20. h3 {[%clk 0:01:05]} 20... Qc6+ {[%clk 0:02:29.6]} 21. e4
{[%clk 0:01:03.5]} 21... Qxc2+ {[%clk 0:02:29]} 22. Rf2 {[%clk 0:00:55]} 22...
Bf3+ {[%clk 0:02:28.7]} 23. Kh2 {[%clk 0:00:55.2]} 23... Qxd3 {[%clk 0:02:27.6]}
24. Rc1 {[%clk 0:00:54.4]} 24... c6 {[%clk 0:02:26.1]} 25. Rc3 {[%clk
0:00:53.8]} 25... Qxe4 {[%clk 0:02:23.8]} 26. Re3 {[%clk 0:00:54]} 26... Qd5
{[%clk 0:02:23.6]} 27. Qf1 {[%clk 0:00:38]} 27... f5 {[%clk 0:02:15.4]} 28.
Rfxf3 {[%clk 0:00:29.5]} 28... Nxf3+ {[%clk 0:02:16.3]} 29. Rxf3 {[%clk
0:00:30.4]} 29... Re4 {[%clk 0:02:16.1]} 30. g4 {[%clk 0:00:26.9]} 30... Rae8
{[%clk 0:02:13.3]} 31. gxf5 {[%clk 0:00:26.9]} 31... Re2+ {[%clk 0:02:10.9]} 32.
Rf2 {[%clk 0:00:27]} 32... Qf3 {[%clk 0:02:07.5]} 0-1

[Event "*** Titled Tuesday Blitz"]
[Site "Chess.com"]
[Date "2020.04.07"]
[Round "6"]
[White "SPEEDSKATER"]
[Black "Kingsman132"]
[Result "1-0"]
[WhiteElo "2794"]
[BlackElo "2416"]
[TimeControl "180+1"]
[EndTime "14:05:20 PDT"]
[Termination "SPEEDSKATER won by checkmate"]

1. d4 {[%clk 0:03:00.9]} 1... Nf6 {[%clk 0:00:28]} 2. c4 {[%clk 0:02:58.4]} 2...
e6 {[%clk 0:00:28]} 3. Nf3 {[%clk 0:02:57.9]} 3... Bb4+ {[%clk 0:00:28.5]} 4.
Bd2 {[%clk 0:02:57.8]} 4... a5 {[%clk 0:00:28.6]} 5. a3 {[%clk 0:02:55.1]} 5...
Bxd2+ {[%clk 0:00:28.4]} 6. Qxd2 {[%clk 0:02:54.8]} 6... a4 {[%clk 0:00:29.3]}
7. Nc3 {[%clk 0:02:53.8]} 7... O-O {[%clk 0:00:29.4]} 8. Qc2 {[%clk 0:02:49.4]}
8... d5 {[%clk 0:00:28.8]} 9. cxd5 {[%clk 0:02:46.6]} 9... exd5 {[%clk
0:00:27.7]} 10. Nxa4 {[%clk 0:02:46.3]} 10... Nc6 {[%clk 0:00:26.8]} 11. Nc3
{[%clk 0:02:45.6]} 11... Bg4 {[%clk 0:00:26.1]} 12. e3 {[%clk 0:02:45.1]} 12...
Re8 {[%clk 0:00:26.6]} 13. Be2 {[%clk 0:02:44.6]} 13... Bxf3 {[%clk 0:00:27]}
14. gxf3 {[%clk 0:02:45.5]} 14... Qe7 {[%clk 0:00:21.1]} 15. O-O {[%clk
0:02:43.2]} 15... Nh5 {[%clk 0:00:17.3]} 16. Kh1 {[%clk 0:02:36.4]} 16... Qh4
{[%clk 0:00:16.9]} 17. Qf5 {[%clk 0:02:28.9]} 17... Re6 {[%clk 0:00:15.3]} 18.
Qg4 {[%clk 0:02:27.7]} 18... Qe7 {[%clk 0:00:12.4]} 19. Qxh5 {[%clk 0:02:13.8]}
19... Qd6 {[%clk 0:00:11.5]} 20. f4 {[%clk 0:02:12]} 20... Rh6 {[%clk
0:00:11.2]} 21. Qxd5 {[%clk 0:02:11.5]} 21... Qg6 {[%clk 0:00:09.7]} 22. Rg1
{[%clk 0:02:07.8]} 22... Qf6 {[%clk 0:00:09.3]} 23. Qg5 {[%clk 0:02:05.6]} 23...
Qd6 {[%clk 0:00:06.7]} 24. Qxg7# {[%clk 0:02:05.1]} 1-0

[Event "*** Titled Tuesday Blitz"]
[Site "Chess.com"]
[Date "2020.04.07"]
[Round "6"]
[White "Konavets"]
[Black "Caracternin123"]
[Result "1-0"]
[WhiteElo "3004"]
[BlackElo "2560"]
[TimeControl "180+1"]
[EndTime "14:05:21 PDT"]
[Termination "Konavets won by resignation"]

1. Nf3 {[%clk 0:03:00.9]} 1... Nf6 {[%clk 0:02:59.5]} 2. c4 {[%clk 0:02:58.1]}
2... e6 {[%clk 0:02:59.3]} 3. g3 {[%clk 0:02:54.7]} 3... d5 {[%clk 0:02:59.2]}
4. Bg2 {[%clk 0:02:55.6]} 4... dxc4 {[%clk 0:02:59.4]} 5. Qa4+ {[%clk
0:02:54.7]} 5... Bd7 {[%clk 0:02:59]} 6. Qxc4 {[%clk 0:02:54.9]} 6... c5 {[%clk
0:02:59.2]} 7. Ne5 {[%clk 0:02:55.3]} 7... Qc8 {[%clk 0:02:59.7]} 8. Qd3 {[%clk
0:02:55.6]} 8... Nc6 {[%clk 0:02:59.3]} 9. Nxd7 {[%clk 0:02:55.6]} 9... Nxd7
{[%clk 0:02:58.3]} 10. O-O {[%clk 0:02:55.4]} 10... Be7 {[%clk 0:02:53]} 11. Nc3
{[%clk 0:02:55.6]} 11... O-O {[%clk 0:02:52.3]} 12. b3 {[%clk 0:02:56.2]} 12...
Rd8 {[%clk 0:02:49.4]} 13. Bb2 {[%clk 0:02:56.5]} 13... a6 {[%clk 0:02:48.4]}
14. Rad1 {[%clk 0:02:55.2]} 14... Bf6 {[%clk 0:02:47.9]} 15. Qb1 {[%clk
0:02:55.6]} 15... Rb8 {[%clk 0:02:45.1]} 16. Kh1 {[%clk 0:02:43.6]} 16... b5
{[%clk 0:02:42.3]} 17. Rc1 {[%clk 0:02:43.6]} 17... Be7 {[%clk 0:02:36.9]} 18.
Rfd1 {[%clk 0:02:43.1]} 18... Nf6 {[%clk 0:02:36.8]} 19. Ne4 {[%clk 0:02:41.9]}
19... Nxe4 {[%clk 0:01:47.1]} 20. Qxe4 {[%clk 0:02:42.8]} 20... Nb4 {[%clk
0:01:25.6]} 21. Qg4 {[%clk 0:02:28]} 21... Bf8 {[%clk 0:01:24.4]} 22. a3 {[%clk
0:02:24.7]} 22... Nd5 {[%clk 0:01:23.9]} 23. h4 {[%clk 0:02:24.8]} 23... Qd7
{[%clk 0:01:21.8]} 24. h5 {[%clk 0:02:23.9]} 24... h6 {[%clk 0:01:22.1]} 25. Be5
{[%clk 0:02:23.7]} 25... Rbc8 {[%clk 0:01:21.3]} 26. d3 {[%clk 0:02:23.3]} 26...
Ne7 {[%clk 0:01:18.8]} 27. b4 {[%clk 0:02:16.2]} 27... Nf5 {[%clk 0:01:18]} 28.
bxc5 {[%clk 0:02:14.3]} 28... Bxc5 {[%clk 0:01:06.5]} 29. d4 {[%clk 0:02:13.5]}
29... Bf8 {[%clk 0:01:03.4]} 30. Rxc8 {[%clk 0:02:12.8]} 30... Rxc8 {[%clk
0:01:04.3]} 31. d5 {[%clk 0:02:13.1]} 31... Re8 {[%clk 0:01:00.2]} 32. e4 {[%clk
0:02:11.1]} 32... Nd6 {[%clk 0:00:58.7]} 33. Bh3 {[%clk 0:02:00.6]} 33... Nc4
{[%clk 0:00:55.7]} 34. Ba1 {[%clk 0:02:00.4]} 34... Qd8 {[%clk 0:00:54.6]} 35.
dxe6 {[%clk 0:01:59.7]} 35... Qf6 {[%clk 0:00:54.3]} 36. Bxf6 {[%clk 0:01:58.7]}
1-0